fUSD/lending_fUSD_20250811
["ID","MTS","AMOUNT","RATE_DAILY","PERIOD"]
[378568999,1754914233327,-669.74,0.00016622,2]
[378569000,1754914233338,-400.0,0.00016622,2]
[378569001,1754914233348,-402.56103571,0.00016622,2]
[378569002,1754914233359,-400.0,0.00016622,2]
[378569003,1754914233369,-987.95,0.00016622,2]
[378569004,1754914233379,-400.0,0.00016622,2]
[378569005,1754914233389,-400.0,0.00016622,2]
[378569006,1754914233399,-400.0,0.00016622,2]
[378569007,1754914233410,-402.03221198,0.00016622,2]
[378569008,1754914233419,-571.52,0.00016622,2]
[378569009,1754914233429,-402.11189611,0.00016622,2]
[378569010,1754914233439,-158.46,0.00016622,2]
[378569011,1754914233448,-400.0,0.00016622,2]
[378569012,1754914233458,-400.0,0.00016622,2]
[378569013,1754914233468,-400.0,0.00016622,2]
[378569014,1754914233478,-405.05196083,0.00016622,2]
[378569015,1754914233488,-400.0,0.00016622,2]
[378569016,1754914233499,-400.0,0.00016622,2]
[378569017,1754914233513,-400.0,0.00016622,2]
[378569018,1754914233523,-401.11768773,0.00016622,2]
[378569019,1754914233534,-400.0,0.00016622,2]
[378569020,1754914233544,-400.0,0.00016622,2]
[378569021,1754914233554,-400.0,0.00016622,2]
[378569022,1754914233564,-400.0,0.00016622,2]
[378569023,1754914233579,-400.0,0.00016622,2]
[378569024,1754914233589,-400.0,0.00016622,2]
[378569025,1754914233600,-400.0,0.00016622,2]
[378569026,1754914233611,-400.0,0.00016622,2]
[378569027,1754914233621,-400.0,0.00016622,2]
[378569028,1754914233631,-400.0,0.00016622,2]
[378569029,1754914233641,-400.0,0.00016622,2]
[378569030,1754914233653,-400.0,0.00016622,2]
[378569031,1754914233664,-400.0,0.00016622,2]
[378569032,1754914233674,-400.0,0.00016622,2]
[378569033,1754914233684,-400.0,0.00016622,2]
[378569034,1754914233695,-400.0,0.00016622,2]
[378569035,1754914233705,-400.0,0.00016622,2]
[378569036,1754914233716,-400.0,0.00016622,2]
[378569037,1754914233726,-400.0,0.00016622,2]
[378569038,1754914233736,-400.0,0.00016622,2]
[378569039,1754914233746,-400.0,0.00016622,2]
[378569040,1754914233756,-400.0,0.00016622,2]
[378569041,1754914233766,-400.0,0.00016622,2]
[378569042,1754914233775,-459.13,0.00016622,2]
[378569043,1754914233785,-400.0,0.00016622,2]
[378569044,1754914233795,-1341.89,0.00016622,2]
[378569045,1754914233804,-400.0,0.00016622,2]
[378569046,1754914233814,-400.0,0.00016622,2]
[378569047,1754914233826,-400.0,0.00016622,2]
[378569048,1754914233836,-400.0,0.00016622,2]
[378569049,1754914233847,-400.0,0.00016622,2]
[378569050,1754914233857,-756.12,0.00016622,2]
[378569051,1754914233866,-710.86,0.00016622,2]
[378569052,1754914233876,-400.0,0.00016622,2]
[378569053,1754914233886,-400.0,0.00016622,2]
[378569054,1754914233896,-400.0,0.00016622,2]
[378569055,1754914233906,-549.96,0.00016622,2]
[378569056,1754914233916,-400.0,0.00016622,2]
[378569057,1754914233926,-400.0,0.00016622,2]
[378569058,1754914233936,-627.57,0.00016622,2]
[378569059,1754914233945,-400.0,0.00016622,2]
[378569060,1754914233954,-400.0,0.00016622,2]
[378569061,1754914233964,-440.93,0.00016622,2]
[378569062,1754914233974,-400.0,0.00016622,2]
[378569063,1754914233984,-1083.07,0.00016622,2]
[378569064,1754914233993,-400.0,0.00016622,2]
[378569065,1754914234003,-400.0,0.00016622,2]
[378569066,1754914234013,-400.0,0.00016622,2]
[378569067,1754914234022,-400.0,0.00016622,2]
[378569068,1754914234032,-400.0,0.00016622,2]
[378569069,1754914234041,-400.0,0.00016622,2]
[378569070,1754914234051,-400.0,0.00016622,2]
[378569071,1754914234062,-1128.66,0.00016622,2]
[378569072,1754914234075,-452.83,0.00016622,2]
[378569073,1754914234086,-402.14566564,0.00016622,2]
[378569074,1754914234096,-400.0,0.00016622,2]
[378569075,1754914234106,-400.0,0.00016622,2]
[378569076,1754914234116,-400.0,0.00016622,2]
[378569077,1754914234126,-421.24,0.00016622,2]
[378569078,1754914234136,-400.0,0.00016622,2]
[378569079,1754914234147,-400.0,0.00016622,2]
[378569080,1754914234156,-571.46,0.00016622,2]
[378569081,1754914234166,-400.0,0.00016622,2]
[378569082,1754914234176,-400.0,0.00016622,2]
[378569083,1754914234185,-400.0,0.00016622,2]
[378569084,1754914234195,-688.05,0.00016622,2]
[378569085,1754914234204,-401.5980695,0.00016622,2]
[378569086,1754914234214,-400.0,0.00016622,2]
[378569087,1754914234223,-709.02,0.00016622,2]
[378569088,1754914234233,-370.6451168,0.00016622,2]
[378569089,1754914234243,-400.0,0.00016622,2]
[378569090,1754914234252,-400.0,0.00016622,2]
[378569091,1754914234262,-400.0,0.00016622,2]
[378569092,1754914234272,-611.52,0.00016622,2]
[378569093,1754914234282,-618.38,0.00016622,2]
[378569094,1754914234291,-400.0,0.00016622,2]
[378569095,1754914234300,-401.52308113,0.00016622,2]
[378569096,1754914234310,-400.0,0.00016622,2]
[378569097,1754914234321,-400.0,0.00016622,2]
[378569098,1754914234331,-681.56,0.00016622,2]
[378569099,1754914234340,-1160.54,0.00016622,2]
[378569100,1754914234349,-400.0,0.00016622,2]
[378569101,1754914234359,-400.0,0.00016622,2]
[378569102,1754914234369,-405.55521971,0.00016622,2]
[378569103,1754914234379,-400.0,0.00016622,2]
[378569104,1754914234388,-400.0,0.00016622,2]
[378569105,1754914234398,-400.0,0.00016622,2]
[378569106,1754914234408,-456.87,0.00016622,2]
[378569107,1754914234419,-400.0,0.00016622,2]
[378569108,1754914234429,-708.67,0.00016622,2]
[378569109,1754914234438,-515.68,0.00016622,2]
[378569110,1754914234448,-400.0,0.00016622,2]
[378569111,1754914234457,-400.0,0.00016622,2]
[378569112,1754914234466,-400.0,0.00016622,2]
[378569113,1754914234476,-400.0,0.00016622,2]
[378569114,1754914234486,-755.73,0.00016622,2]
[378569115,1754914234495,-400.0,0.00016622,2]
[378569116,1754914234505,-400.0,0.00016622,2]
[378569117,1754914234514,-400.0,0.00016622,2]
[378569118,1754914234524,-870.6,0.00016622,2]
[378569119,1754914234534,-681.39,0.00016622,2]
[378569120,1754914234543,-507.65,0.00016622,2]
[378569121,1754914234553,-400.0,0.00016622,2]
[378569122,1754914234563,-400.0,0.00016622,2]
[378569123,1754914234576,-687.92,0.00016622,2]
[378569124,1754914234585,-400.0,0.00016622,2]
[378569125,1754914234595,-400.0,0.00016622,2]
[378569126,1754914234604,-400.0,0.00016622,2]
[378569127,1754914234614,-400.0,0.00016622,2]
[378569128,1754914234624,-403.5984869,0.00016622,2]
[378569129,1754914234633,-400.0,0.00016622,2]
[378569130,1754914234648,-400.0,0.00016622,2]
[378569131,1754914234658,-400.0,0.00016622,2]
[378569132,1754914234668,-400.0,0.00016622,2]
[378569133,1754914234677,-400.0,0.00016622,2]
[378569134,1754914234687,-400.0,0.00016622,2]
[378569135,1754914234697,-609.46,0.00016622,2]
[378569136,1754914234707,-400.0,0.00016622,2]
[378569137,1754914234719,-558.69,0.00016622,2]
[378569138,1754914234729,-400.0,0.00016622,2]
[378569139,1754914234739,-556.36,0.00016622,2]
[378569140,1754914234748,-1002.84,0.00016622,2]
[378569141,1754914234758,-400.0,0.00016622,2]
[378569142,1754914234767,-532.73,0.00016622,2]
[378569143,1754914234777,-938.53,0.00016622,2]
[378569144,1754914234787,-400.0,0.00016622,2]
[378569145,1754914234798,-400.0,0.00016622,2]
[378569146,1754914234808,-446.77,0.00016622,2]
[378569147,1754914234819,-555.58,0.00016622,2]
[378569148,1754914234828,-400.0,0.00016622,2]
[378569149,1754914234838,-400.0,0.00016622,2]
[378569150,1754914234847,-400.0,0.00016622,2]
[378569151,1754914234856,-399.03729608,0.00016622,2]
[378569152,1754914234866,-404.2,0.00016622,2]
[378569153,1754914234876,-394.85418356,0.00016622,2]
[378569154,1754914234886,-400.0,0.00016622,2]
[378569155,1754914234895,-400.0,0.00016622,2]
[378569156,1754914234907,-400.87,0.00016622,2]
[378569157,1754914234917,-499.55,0.00016622,2]
[378569158,1754914234926,-686.46,0.00016622,2]
[378569159,1754914234935,-644.71,0.00016622,2]
[378569160,1754914234945,-400.0,0.00016622,2]
[378569161,1754914234954,-400.0,0.00016622,2]
[378569162,1754914234964,-400.0,0.00016622,2]
[378569163,1754914234973,-407.15820689,0.00016622,2]
[378569164,1754914234983,-433.55,0.00016622,2]
[378569165,1754914234992,-400.0,0.00016622,2]
[378569166,1754914235001,-400.0,0.00016622,2]
[378569167,1754914235011,-780.36,0.00016622,2]
[378569168,1754914235020,-400.0,0.00016622,2]
[378569169,1754914235029,-1047.99,0.00016622,2]
[378569170,1754914235039,-855.35,0.00016622,2]
[378569171,1754914235049,-400.0,0.00016622,2]
[378569172,1754914235059,-400.0,0.00016622,2]
[378569173,1754914235068,-431.37416568,0.00016622,2]
[378569174,1754914235077,-574.35,0.00016622,2]
[378569175,1754914235087,-400.0,0.00016622,2]
[378569176,1754914235097,-831.98,0.00016622,2]
[378569177,1754914235107,-984.72,0.00016622,2]
[378569178,1754914235116,-400.0,0.00016622,2]
[378569179,1754914235126,-400.0,0.00016622,2]
[378569180,1754914235135,-400.0,0.00016622,2]
[378569181,1754914235145,-400.0,0.00016622,2]
[378569182,1754914235154,-400.0,0.00016622,2]
[378569183,1754914235163,-400.0,0.00016622,2]
[378569184,1754914235173,-400.0,0.00016622,2]
[378569185,1754914235182,-400.0,0.00016622,2]
[378569186,1754914235192,-1101.3,0.00016622,2]
[378569187,1754914235201,-400.0,0.00016622,2]
[378569188,1754914235211,-732.81,0.00016622,2]
[378569189,1754914235220,-400.0,0.00016622,2]
[378569190,1754914235229,-400.0,0.00016622,2]
[378569191,1754914235239,-662.47,0.00016622,2]
[378569192,1754914235248,-1054.97,0.00016622,2]
[378569193,1754914235258,-400.0,0.00016622,2]
[378569194,1754914235267,-400.0,0.00016622,2]
[378569195,1754914235277,-400.0,0.00016622,2]
[378569196,1754914235287,-400.0,0.00016622,2]
[378569197,1754914235297,-400.0,0.00016622,2]
[378569198,1754914235306,-955.12,0.00016622,2]
[378569199,1754914235316,-400.0,0.00016622,2]
[378569200,1754914235326,-409.56,0.00016622,2]
[378569201,1754914235336,-270.8596639,0.00016622,2]
[378569202,1754914235345,-538.41017635,0.00016622,2]
[378569203,1754914235355,-400.0,0.00016622,2]
[378569204,1754914235366,-419.06,0.00016622,2]
[378569205,1754914235375,-401.3474603,0.00016622,2]
[378569206,1754914235386,-1355.6,0.00016622,2]
[378569207,1754914235396,-400.0,0.00016622,2]
[378569208,1754914235405,-209.36482703,0.00016622,2]
[378569209,1754914235416,-400.0,0.00016622,2]
[378569210,1754914235425,-2588.31,0.00016622,2]
[378569211,1754914235435,-621.05,0.00016622,2]
[378569212,1754914235445,-400.0,0.00016622,2]
[378569213,1754914235456,-557.82,0.00016622,2]
[378569214,1754914235465,-419.55,0.00016622,2]
[378569215,1754914235475,-546.65,0.00016622,2]
[378569216,1754914235484,-400.0,0.00016622,2]
[378569217,1754914235493,-400.0,0.00016622,2]
[378569218,1754914235503,-1265.18,0.00016622,2]
[378569219,1754914235512,-766.22,0.00016622,2]
[378569220,1754914235521,-400.0,0.00016622,2]
[378569221,1754914235531,-400.0,0.00016622,2]
[378569222,1754914235540,-400.0,0.00016622,2]
[378569223,1754914235550,-400.0,0.00016622,2]
[378569224,1754914235559,-400.0,0.00016622,2]
[378569225,1754914235572,-400.0,0.00016622,2]
[378569226,1754914235581,-400.0,0.00016622,2]
[378569227,1754914235590,-400.0,0.00016622,2]
[378569228,1754914235600,-400.0,0.00016622,2]
[378569229,1754914235611,-269.31143724,0.00016622,2]
[378569230,1754914235620,-400.0,0.00016622,2]
[378569231,1754914235631,-400.0,0.00016622,2]
[378569232,1754914235640,-603.66,0.00016622,2]
[378569233,1754914235650,-400.0,0.00016622,2]
[378569234,1754914235660,-400.0,0.00016622,2]
[378569235,1754914235670,-400.0,0.00016622,2]
[378569236,1754914235683,-400.0,0.00016622,2]
[378569237,1754914235692,-400.0,0.00016622,2]
[378569238,1754914235701,-407.51,0.00016622,2]
[378569239,1754914235710,-400.0,0.00016622,2]
[378569240,1754914235719,-400.0,0.00016622,2]
[378569241,1754914235729,-1164.3,0.00016622,2]
[378569242,1754914235739,-400.0,0.00016622,2]
[378569243,1754914235749,-400.0,0.00016622,2]
[378569244,1754914235758,-867.18,0.00016622,2]
[378569245,1754914235767,-400.0,0.00016622,2]
[378569246,1754914235776,-400.0,0.00016622,2]
[378569247,1754914235785,-400.0,0.00016622,2]
[378569248,1754914235795,-409.82,0.00016622,2]
[378569249,1754914235807,-400.0,0.00016622,2]
[378569250,1754914235817,-400.0,0.00016622,2]
[378569251,1754914235828,-1161.96509348,0.00016622,2]
[378569258,1754914235885,-104.48490652,0.00016622,2]
[378569260,1754914235896,-401.3947894,0.00016622,2]
[378569262,1754914235905,-317.14806793,0.00016622,2]
[378569263,1754914235915,-567.83,0.00016622,2]
[378569265,1754914235924,-400.0,0.00016622,2]
[378569266,1754914235934,-452.18,0.00016622,2]
[378569267,1754914235943,-400.0,0.00016622,2]
[378569268,1754914235952,-400.0,0.00016622,2]
[378569269,1754914235962,-464.68,0.00016622,2]
[378569270,1754914235971,-506.49,0.00016622,2]
[378569271,1754914235982,-400.0,0.00016622,2]
[378569272,1754914235993,-1328.27,0.00016622,2]
[378569273,1754914236002,-1547.71,0.00016622,2]
[378569274,1754914236011,-546.55,0.00016622,2]
[378569275,1754914236021,-400.0,0.00016622,2]
[378569276,1754914236030,-473.3,0.00016622,2]
[378569277,1754914236039,-962.06,0.00016622,2]
[378569278,1754914236049,-400.0,0.00016622,2]
[378569279,1754914236058,-400.0,0.00016622,2]
[378569280,1754914236067,-400.0,0.00016622,2]
[378569281,1754914236077,-400.0,0.00016622,2]
[378569282,1754914236087,-400.0,0.00016622,2]
[378569283,1754914236096,-1441.69,0.00016622,2]
[378569284,1754914236106,-369.14638057,0.00016622,2]
[378569285,1754914236116,-400.0,0.00016622,2]
[378569286,1754914236126,-559.09,0.00016622,2]
[378569287,1754914236135,-934.52,0.00016622,2]
[378569288,1754914236145,-450.83611829,0.00016622,2]
[378569289,1754914236154,-565.69,0.00016622,2]
[378569290,1754914236163,-400.0,0.00016622,2]
[378569291,1754914236173,-400.0,0.00016622,2]
[378569292,1754914236182,-366.06077729,0.00016622,2]
[378569293,1754914236196,-229.37922271,0.00016622,2]
[378569294,1754914236205,-210.22062176,0.00016622,2]
[378569295,1754914236216,-189.77937824,0.00016622,2]
[378569296,1754914236226,-400.0,0.00016622,2]
[378569297,1754914236236,-165.84838742,0.00016622,2]
[378569298,1754914236245,-535.26,0.00016622,2]
[378569299,1754914236255,-875.34,0.00016622,2]
[378569300,1754914236264,-400.0,0.00016622,2]
[378569301,1754914236274,-400.0,0.00016622,2]
[378569302,1754914236283,-400.0,0.00016622,2]
[378569303,1754914236293,-2417.86,0.00016622,2]
[378569304,1754914236302,-456.42,0.00016622,2]
[378569305,1754914236311,-400.0,0.00016622,2]
[378569306,1754914236321,-400.0,0.00016622,2]
[378569307,1754914236330,-400.0,0.00016622,2]
[378569308,1754914236339,-843.11,0.00016622,2]
[378569309,1754914236349,-944.4,0.00016622,2]
[378569310,1754914236358,-400.0,0.00016622,2]
[378569311,1754914236367,-400.0,0.00016622,2]
[378569312,1754914236377,-400.0,0.00016622,2]
[378569313,1754914236386,-528.32,0.00016622,2]
[378569314,1754914236396,-400.0,0.00016622,2]
[378569315,1754914236405,-400.0,0.00016622,2]
[378569316,1754914236414,-400.0,0.00016622,2]
[378569317,1754914236427,-400.0,0.00016622,2]
[378569318,1754914236436,-400.0,0.00016622,2]
[378569319,1754914236445,-688.96,0.00016622,2]
[378569320,1754914236455,-428.06,0.00016622,2]
[378569321,1754914236465,-400.0,0.00016622,2]
[378569322,1754914236474,-1101.87,0.00016622,2]
[378569323,1754914236483,-1336.82,0.00016622,2]
[378569324,1754914236493,-711.92,0.00016622,2]
[378569325,1754914236502,-400.0,0.00016622,2]
[378569326,1754914236512,-400.0,0.00016622,2]
[378569327,1754914236521,-400.0,0.00016622,2]
[378569328,1754914236531,-400.0,0.00016622,2]
[378569329,1754914236540,-400.0,0.00016622,2]
[378569330,1754914236549,-724.81,0.00016622,2]
[378569331,1754914236559,-400.0,0.00016622,2]
[378569332,1754914236571,-1954.89,0.00016622,2]
[378569333,1754914236581,-1597.66,0.00016622,2]
[378569334,1754914236591,-400.0,0.00016622,2]
[378569335,1754914236600,-400.0,0.00016622,2]
[378569336,1754914236611,-400.0,0.00016622,2]
[378569337,1754914236620,-510.9,0.00016622,2]
[378569338,1754914236630,-400.0,0.00016622,2]
[378569339,1754914236639,-400.0,0.00016622,2]
[378569340,1754914236650,-400.0,0.00016622,2]
[378569341,1754914236666,-400.0,0.00016622,2]
[378569342,1754914236681,-865.72,0.00016622,2]
[378569343,1754914236694,-439.2,0.00016622,2]
[378569344,1754914236707,-400.0,0.00016622,2]
[378569345,1754914236718,-400.0,0.00016622,2]
[378569346,1754914236729,-400.0,0.00016622,2]
[378569347,1754914236742,-665.39,0.00016622,2]
[378569348,1754914236754,-400.0,0.00016622,2]
[378569349,1754914236767,-400.0,0.00016622,2]
[378569350,1754914236779,-445.71,0.00016622,2]
[378569351,1754914236792,-1294.15,0.00016622,2]
[378569352,1754914236804,-972.73,0.00016622,2]
[378569353,1754914236816,-400.0,0.00016622,2]
[378569354,1754914236827,-428.16,0.00016622,2]
[378569355,1754914236838,-400.0,0.00016622,2]
[378569356,1754914236850,-593.33,0.00016622,2]
[378569357,1754914236863,-984.7,0.00016622,2]
[378569358,1754914236875,-1479.57,0.00016622,2]
[378569359,1754914236888,-400.0,0.00016622,2]
[378569360,1754914236902,-400.0,0.00016622,2]
[378569361,1754914236914,-400.0,0.00016622,2]
[378569362,1754914236927,-400.84,0.00016622,2]
[378569363,1754914236939,-400.0,0.00016622,2]
[378569364,1754914236952,-402.36778306,0.00016622,2]
[378569365,1754914236964,-400.0,0.00016622,2]
[378569366,1754914236977,-566.42,0.00016622,2]
[378569367,1754914236989,-400.0,0.00016622,2]
[378569368,1754914237001,-1122.18,0.00016622,2]
[378569369,1754914237012,-617.3,0.00016622,2]
[378569370,1754914237026,-400.0,0.00016622,2]
[378569371,1754914237039,-524.6245734,0.00016622,2]
[378569372,1754914237051,-410.64,0.00016622,2]
[378569373,1754914237064,-683.05,0.00016622,2]
[378569374,1754914237080,-400.0,0.00016622,2]
[378569375,1754914237092,-400.0,0.00016622,2]
[378569376,1754914237104,-400.0,0.00016622,2]
[378569377,1754914237116,-1371.68,0.00016622,2]
[378569378,1754914237126,-400.0,0.00016622,2]
[378569379,1754914237137,-507.49,0.00016622,2]
[378569380,1754914237148,-400.0,0.00016622,2]
[378569381,1754914237160,-618.82,0.00016622,2]
[378569382,1754914237174,-400.0,0.00016622,2]
[378569383,1754914237186,-589.43,0.00016622,2]
[378569384,1754914237196,-2878.94,0.00016622,2]
[378569385,1754914237207,-936.7,0.00016622,2]
[378569386,1754914237218,-1213.62,0.00016622,2]
[378569387,1754914237230,-3811.16,0.00016622,2]
[378569388,1754914237244,-462.49,0.00016622,2]
[378569389,1754914237256,-1138.26,0.00016622,2]
[378569390,1754914237266,-479.56,0.00016622,2]
[378569391,1754914237277,-721.83,0.00016622,2]
[378569392,1754914237287,-447.91,0.00016622,2]
[378569393,1754914237299,-400.0,0.00016622,2]
[378569394,1754914237311,-5045.09,0.00016622,2]
[378569395,1754914237324,-400.0,0.00016622,2]
[378569396,1754914237346,-400.0,0.00016622,2]
[378569397,1754914237358,-400.0,0.00016622,2]
[378569398,1754914237370,-308.70842342,0.00016622,2]
[378569399,1754914237382,-400.0,0.00016622,2]
[378569400,1754914237393,-915.63,0.00016622,2]
[378569401,1754914237404,-400.0,0.00016622,2]
[378569402,1754914237415,-662.98,0.00016622,2]
[378569403,1754914237426,-400.0,0.00016622,2]
[378569404,1754914237438,-400.0,0.00016622,2]
[378569405,1754914237449,-400.0,0.00016622,2]
[378569406,1754914237461,-650.04,0.00016622,2]
[378569407,1754914237472,-400.0,0.00016622,2]
[378569408,1754914237483,-400.0,0.00016622,2]
[378569409,1754914237495,-1586.94,0.00016622,2]
[378569410,1754914237506,-1000.0,0.00016622,2]
[378569411,1754914237517,-400.0,0.00016622,2]
[378569412,1754914237528,-400.0,0.00016622,2]
[378569413,1754914237539,-413.37,0.00016622,2]
[378569414,1754914237550,-2101.38,0.00016622,2]
[378569415,1754914237561,-724.53,0.00016622,2]
[378569416,1754914237577,-400.0,0.00016622,2]
[378569417,1754914237587,-1242.04,0.00016622,2]
[378569418,1754914237599,-400.0,0.00016622,2]
[378569419,1754914237610,-400.0,0.00016622,2]
[378569420,1754914237622,-400.0,0.00016622,2]
[378569421,1754914237633,-400.0,0.00016622,2]
[378569422,1754914237645,-400.0,0.00016622,2]
[378569423,1754914237657,-2181.85,0.00016622,2]
[378569424,1754914237668,-515.49,0.00016622,2]
[378569425,1754914237679,-400.0,0.00016622,2]
[378569426,1754914237690,-400.0,0.00016622,2]
[378569427,1754914237701,-2090.44,0.00016622,2]
[378569428,1754914237712,-568.56,0.00016622,2]
[378569429,1754914237724,-400.0,0.00016622,2]
[378569430,1754914237736,-1289.93,0.00016622,2]
[378569431,1754914237747,-786.02,0.00016622,2]
[378569432,1754914237758,-400.0,0.00016622,2]
[378569433,1754914237769,-400.0,0.00016622,2]
[378569435,1754914237781,-400.0,0.00016622,2]
[378569437,1754914237792,-400.0,0.00016622,2]
[378569440,1754914237803,-28.92300328,0.00016622,2]
[378569443,1754914237824,-371.07699672,0.00016622,2]
[378569445,1754914237835,-173.55612,0.00016622,2]
[378569447,1754914237847,-195.12348043,0.00016622,2]
[378569450,1754914237860,-629.34651957,0.00016622,2]
[378569452,1754914237871,-320.06923021,0.00016622,2]
[378569454,1754914237882,-196.23196468,0.00016622,2]
[378569577,1754914239043,-171.82219271,0.00016171,2]
[378569579,1754914239055,-203.76803532,0.00016622,2]
[378569582,1754914239066,-400.0,0.00016622,2]
[378569584,1754914239078,-64.11041266,0.00016622,2]
[378569587,1754914239097,-335.88958734,0.00016622,2]
[378569589,1754914239107,-92.11041266,0.00016622,2]
[378569591,1754914239121,-307.88958734,0.00016622,2]
[378569594,1754914239132,-506.615578,0.00016622,2]
[378569596,1754914239143,-400.0,0.00016622,2]
[378569598,1754914239155,-400.0,0.00016622,2]
[378569600,1754914239166,-191.15474425,0.00016622,2]
[378569612,1754914239272,-617.49525575,0.00016622,2]
[378569615,1754914239283,-944.8,0.00016622,2]
[378569617,1754914239294,-36.93224792,0.00016622,2]
[378569804,1754914241154,-1094.44404808,0.00016622,2]
[378569805,1754914241163,-738.14,0.00016622,2]
[378569806,1754914241173,-966.18,0.00016622,2]
[378569807,1754914241182,-400.0,0.00016622,2]
[378569808,1754914241191,-1230.06,0.00016622,2]
[378569809,1754914241201,-400.0,0.00016622,2]
[378569810,1754914241210,-668.07,0.00016622,2]
[378569811,1754914241220,-400.0,0.00016622,2]
[378569812,1754914241230,-400.0,0.00016622,2]
[378569813,1754914241239,-1685.14,0.00016622,2]
[378569814,1754914241249,-400.0,0.00016622,2]
[378569815,1754914241258,-400.0,0.00016622,2]
[378569816,1754914241268,-400.0,0.00016622,2]
[378569817,1754914241277,-1249.47,0.00016622,2]
[378569818,1754914241287,-400.0,0.00016622,2]
[378569819,1754914241296,-400.0,0.00016622,2]
[378569820,1754914241306,-400.0,0.00016622,2]
[378569821,1754914241317,-400.0,0.00016622,2]
[378569822,1754914241327,-400.0,0.00016622,2]
[378569823,1754914241337,-1306.48,0.00016622,2]
[378569824,1754914241348,-581.89,0.00016622,2]
[378569825,1754914241358,-401.70217259,0.00016622,2]
[378569826,1754914241369,-401.61204553,0.00016622,2]
[378569827,1754914241379,-400.0,0.00016622,2]
[378569828,1754914241390,-1755.19,0.00016622,2]
[378569829,1754914241401,-1960.66,0.00016622,2]
[378569830,1754914241413,-400.0,0.00016622,2]
[378569831,1754914241424,-400.0,0.00016622,2]
[378569832,1754914241434,-400.0,0.00016622,2]
[378569833,1754914241444,-880.36,0.00016622,2]
[378569834,1754914241453,-400.0,0.00016622,2]
[378569835,1754914241463,-1005.03,0.00016622,2]
[378569836,1754914241472,-397.82342412,0.00016622,2]
[378569837,1754914241484,-2.17657588,0.00016622,2]
[378569839,1754914241493,-400.0,0.00016622,2]
[378569841,1754914241503,-264.98475794,0.00016622,2]
[378569843,1754914241514,-1268.01524206,0.00016622,2]
[378569844,1754914241524,-400.0,0.00016622,2]
[378569845,1754914241533,-400.0,0.00016622,2]
[378569846,1754914241542,-1098.7208,0.00016622,2]
[378569847,1754914241551,-400.0,0.00016622,2]
[378569848,1754914241560,-400.0,0.00016622,2]
[378569849,1754914241572,-1887.06,0.00016622,2]
[378569850,1754914241582,-400.0,0.00016622,2]
[378569851,1754914241591,-400.0,0.00016622,2]
[378569852,1754914241599,-574.56,0.00016622,2]
[378569853,1754914241608,-400.0,0.00016622,2]
[378569854,1754914241618,-400.0,0.00016622,2]
[378569855,1754914241626,-400.0,0.00016622,2]
[378569856,1754914241635,-1107.72,0.00016622,2]
[378569857,1754914241647,-400.0,0.00016622,2]